Workbook

Sheet TC-20 Query
A1: ID | B1: Flowgate | C1: Implementation Date & Time | D1: DD-MMM-YY | E1: Start Date & Time | F1: Stop Date & Time | G1: Hour Ending | H1: Interval/s Curtailed | I1: Relief Needed | J1: MW Curtailed | K1: Minutes Curtailed | L1: MWh Ratio | M1: Priority 1 | N1: Priority 2 | O1: Priority 3 | P1: Priority 4 | Q1: Priority 5 | R1: Priority 6 | S1: Priority 7 | T1: Tags Rejected | U1: Priority 1 MWh | V1: Priority 2 MWh | W1: Priority 3 MWh | X1: Priority 4 MWh | Y1: Priority 5 MWh | Z1: Priority 6 MWh | AA1: Priority 7 MWh
A2: [iCRS00065] | B2: NWACI_SN | C2: 02/27/2024 10:33:24 | D2: =E2 -> 2024-02-27T10:34:00 | E2: 2024-02-27T10:34:00 | F2: 02/27/2024 11:00:00 | G2: 11 | H2: C-D | I2: 250 | J2: 374 | K2: =(F2-E2)*24*60 -> 26 | L2: =K2/60 -> 0.4333333333 | M2: 374 | N2: 0 | O2: 0 | P2: 0 | Q2: 0 | R2: 0 | S2: 0 | T2: 0 | U2: =M2*$L2 -> 162.0666667 | V2: =N2*$L2 -> 0 | W2: =O2*$L2 -> 0 | X2: =P2*$L2 -> 0 | Y2: =Q2*$L2 -> 0 | Z2: =R2*$L2 -> 0 | AA2: =S2*$L2 -> 0
A3: [iCRS00050] | B3: NOEL | C3: 02/24/2024 07:23:46 | D3: =E3 -> 2024-02-24T07:25:00 | E3: 2024-02-24T07:25:00 | F3: 02/24/2024 08:00:00 | G3: 8 | H3: B-D | I3: 500 | J3: 1294 | K3: =(F3-E3)*24*60 -> 35 | L3: =K3/60 -> 0.5833333333 | M3: 1294 | N3: 0 | O3: 0 | P3: 0 | Q3: 0 | R3: 0 | S3: 0 | T3: 0 | U3: =M3*$L3 -> 754.8333333 | V3: =N3*$L3 -> 0 | W3: =O3*$L3 -> 0 | X3: =P3*$L3 -> 0 | Y3: =Q3*$L3 -> 0 | Z3: =R3*$L3 -> 0 | AA3: =S3*$L3 -> 0
A4: [iCRS00022-7] | B4: NWACI_SN | C4: 01/16/2024 05:23:15 | D4: =E4 -> 2024-01-16T05:23:00 | E4: 2024-01-16T05:23:00 | F4: 01/16/2024 06:00:00 | G4: 6 | H4: B-D | I4: 200 | J4: 255 | K4: =(F4-E4)*24*60 -> 36.99999999 | L4: =K4/60 -> 0.6166666666 | M4: 0 | N4: 0 | O4: 62 | P4: 0 | Q4: 0 | R4: 0 | S4: 193 | T4: 0 | U4: =M4*$L4 -> 0 | V4: =N4*$L4 -> 0 | W4: =O4*$L4 -> 38.23333333 | X4: =P4*$L4 -> 0 | Y4: =Q4*$L4 -> 0 | Z4: =R4*$L4 -> 0 | AA4: =S4*$L4 -> 119.0166667
A5: [iCRS00021-7] | B5: NWACI_SN | C5: 01/16/2024 05:10:55 | D5: 2024-01-16T05:11:00 | E5: 2024-01-16T05:11:00 | F5: 01/16/2024 06:00:00 | G5: 6 | H5: A-D | I5: 600 | J5: 712 | K5: =(F5-E5)*24*60 -> 49 | L5: =K5/60 -> 0.8166666667 | M5: 0 | N5: 77 | O5: 508 | P5: 0 | Q5: 0 | R5: 0 | S5: 127 | T5: 0 | U5: =M5*$L5 -> 0 | V5: =N5*$L5 -> 62.88333334 | W5: =O5*$L5 -> 414.8666667 | X5: =P5*$L5 -> 0 | Y5: =Q5*$L5 -> 0 | Z5: =R5*$L5 -> 0 | AA5: =S5*$L5 -> 103.7166667
A6: [iCRS00017] | B6: NWACI_SN | C6: 01/16/2024 04:07:30 | D6: 2024-01-16T04:08:00 | E6: 2024-01-16T04:08:00 | F6: 01/16/2024 05:00:00 | G6: 5 | H6: A-D | I6: 400 | J6: 464 | K6: =(F6-E6)*24*60 -> 52 | L6: =K6/60 -> 0.8666666667 | M6: 14 | N6: 254 | O6: 196 | P6: 0 | Q6: 0 | R6: 0 | S6: 0 | T6: 0 | U6: =M6*$L6 -> 12.13333333 | V6: =N6*$L6 -> 220.1333333 | W6: =O6*$L6 -> 169.8666667 | X6: =P6*$L6 -> 0 | Y6: =Q6*$L6 -> 0 | Z6: =R6*$L6 -> 0 | AA6: =S6*$L6 -> 0
A7: [iCRS00015] | B7: NWACI_SN | C7: 01/15/2024 04:15:09 | D7: 2024-01-15T04:15:00 | E7: 2024-01-15T04:15:00 | F7: 01/15/2024 05:00:00 | G7: 5 | H7: B-D | I7: 400 | J7: 463 | K7: =(F7-E7)*24*60 -> 45 | L7: =K7/60 -> 0.75 | M7: 0 | N7: 1 | O7: 462 | P7: 0 | Q7: 0 | R7: 0 | S7: 0 | T7: 0 | U7: =M7*$L7 -> 0 | V7: =N7*$L7 -> 0.75 | W7: =O7*$L7 -> 346.5 | X7: =P7*$L7 -> 0 | Y7: =Q7*$L7 -> 0 | Z7: =R7*$L7 -> 0 | AA7: =S7*$L7 -> 0
A8: [iCRS00012] | B8: NWACI_SN | C8: 01/15/2024 03:34:40 | D8: 2024-01-15T03:35:00 | E8: 2024-01-15T03:35:00 | F8: 01/15/2024 04:00:00 | G8: 4 | H8: C-D | I8: 200 | J8: 233 | K8: =(F8-E8)*24*60 -> 25 | L8: =K8/60 -> 0.4166666666 | M8: 0 | N8: 0 | O8: 208 | P8: 25 | Q8: 0 | R8: 0 | S8: 0 | T8: 0 | U8: =M8*$L8 -> 0 | V8: =N8*$L8 -> 0 | W8: =O8*$L8 -> 86.66666666 | X8: =P8*$L8 -> 10.41666667 | Y8: =Q8*$L8 -> 0 | Z8: =R8*$L8 -> 0 | AA8: =S8*$L8 -> 0
A9: [iCRS00011] | B9: NWACI_SN | C9: 01/15/2024 03:05:24 | D9: 2024-01-15T03:05:00 | E9: 2024-01-15T03:05:00 | F9: 01/15/2024 04:00:00 | G9: 4 | H9: A-D | I9: 400 | J9: 464 | K9: =(F9-E9)*24*60 -> 55 | L9: =K9/60 -> 0.9166666667 | M9: 75 | N9: 95 | O9: 294 | P9: 0 | Q9: 0 | R9: 0 | S9: 0 | T9: 0 | U9: =M9*$L9 -> 68.75 | V9: =N9*$L9 -> 87.08333334 | W9: =O9*$L9 -> 269.5 | X9: =P9*$L9 -> 0 | Y9: =Q9*$L9 -> 0 | Z9: =R9*$L9 -> 0 | AA9: =S9*$L9 -> 0
A10: [iCRS00010] | B10: NWACI_SN | C10: 01/15/2024 02:25:21 | D10: 2024-01-15T02:26:00 | E10: 2024-01-15T02:26:00 | F10: 01/15/2024 03:00:00 | G10: 3 | H10: B-D | I10: 300 | J10: 349 | K10: =(F10-E10)*24*60 -> 34 | L10: =K10/60 -> 0.5666666666 | M10: 0 | N10: 0 | O10: 349 | P10: 0 | Q10: 0 | R10: 0 | S10: 0 | T10: 0 | U10: =M10*$L10 -> 0 | V10: =N10*$L10 -> 0 | W10: =O10*$L10 -> 197.7666666 | X10: =P10*$L10 -> 0 | Y10: =Q10*$L10 -> 0 | Z10: =R10*$L10 -> 0 | AA10: =S10*$L10 -> 0
A11: [iCRS00009] | B11: NWACI_SN | C11: 01/15/2024 02:14:30 | D11: 2024-01-15T02:14:00 | E11: 2024-01-15T02:14:00 | F11: 01/15/2024 03:00:00 | G11: 3 | H11: A-D | I11: 200 | J11: 231 | K11: =(F11-E11)*24*60 -> 46 | L11: =K11/60 -> 0.7666666667 | M11: 75 | N11: 95 | O11: 61 | P11: 0 | Q11: 0 | R11: 0 | S11: 0 | T11: 0 | U11: =M11*$L11 -> 57.5 | V11: =N11*$L11 -> 72.83333334 | W11: =O11*$L11 -> 46.76666667 | X11: =P11*$L11 -> 0 | Y11: =Q11*$L11 -> 0 | Z11: =R11*$L11 -> 0 | AA11: =S11*$L11 -> 0
A12: [iCRS09170] | B12: NOEL | C12: 2023-11-19T14:51:22 | D12: 2023-11-19T15:00:00 | E12: 2023-11-19T15:00:00 | F12: 2023-11-19T16:00:00 | G12: 16 | H12: A-D | I12: 90 | J12: 235 | K12: =(F12-E12)*24*60 -> 60 | L12: =K12/60 -> 0.9999999999 | M12: 235 | N12: 0 | O12: 0 | P12: 0 | Q12: 0 | R12: 0 | S12: 0 | T12: 0 | U12: =M12*$L12 -> 235 | V12: =N12*$L12 -> 0 | W12: =O12*$L12 -> 0 | X12: =P12*$L12 -> 0 | Y12: =Q12*$L12 -> 0 | Z12: =R12*$L12 -> 0 | AA12: =S12*$L12 -> 0
A13: [iCRS09169] | B13: NOEL | C13: 2023-11-19T14:27:19 | D13: 2023-11-19 | E13: 2023-11-19T14:27:00 | F13: 2023-11-19T15:00:00 | G13: 15 | H13: B-D | I13: 300 | J13: 862 | K13: 33 | L13: =K13/60 -> 0.55 | M13: 862 | N13: 0 | O13: 0 | P13: 0 | Q13: 0 | R13: 0 | S13: 0 | T13: 0 | U13: =M13*$L13 -> 474.1 | V13: =N13*$L13 -> 0 | W13: =O13*$L13 -> 0 | X13: =P13*$L13 -> 0 | Y13: =Q13*$L13 -> 0 | Z13: =R13*$L13 -> 0 | AA13: =S13*$L13 -> 0
A14: [iCRS09168] | B14: NOEL | C14: 2023-11-19T11:44:16 | D14: 2023-11-19 | E14: 2023-11-19T12:00:00 | F14: 2023-11-19T13:00:00 | G14: 13 | H14: A-D | I14: 70 | J14: 201 | K14: 60 | L14: =K14/60 -> 1 | M14: 201 | N14: 0 | O14: 0 | P14: 0 | Q14: 0 | R14: 0 | S14: 0 | T14: 0 | U14: =M14*$L14 -> 201 | V14: =N14*$L14 -> 0 | W14: =O14*$L14 -> 0 | X14: =P14*$L14 -> 0 | Y14: =Q14*$L14 -> 0 | Z14: =R14*$L14 -> 0 | AA14: =S14*$L14 -> 0
A15: [iCRS09158] | B15: NOEL | C15: 2023-11-19T11:18:34 | D15: 2023-11-19 | E15: 2023-11-19T11:18:00 | F15: 2023-11-19T12:00:00 | G15: 12 | H15: B-D | I15: 300 | J15: 857 | K15: 42 | L15: =K15/60 -> 0.7 | M15: 857 | N15: 0 | O15: 0 | P15: 0 | Q15: 0 | R15: 0 | S15: 0 | T15: 0 | U15: =M15*$L15 -> 599.9 | V15: =N15*$L15 -> 0 | W15: =O15*$L15 -> 0 | X15: =P15*$L15 -> 0 | Y15: =Q15*$L15 -> 0 | Z15: =R15*$L15 -> 0 | AA15: =S15*$L15 -> 0
A16: [iCRS09136] | B16: NOEL | C16: 2023-10-23T09:16:35 | D16: 2023-10-23 | E16: 2023-10-23T09:16:00 | F16: 2023-10-23T09:30:00 | G16: 10 | H16: B | I16: 200 | J16: 577 | K16: 14 | L16: =K16/60 -> 0.2333333333 | M16: 577 | N16: 0 | O16: 0 | P16: 0 | Q16: 0 | R16: 0 | S16: 0 | T16: 0 | U16: =M16*$L16 -> 134.6333333 | V16: =N16*$L16 -> 0 | W16: =O16*$L16 -> 0 | X16: =P16*$L16 -> 0 | Y16: =Q16*$L16 -> 0 | Z16: =R16*$L16 -> 0 | AA16: =S16*$L16 -> 0
A17: [iCRS09135] | B17: NOEL | C17: 2023-10-23T08:42:55 | D17: 2023-10-23 | E17: 2023-10-23T08:42:00 | F17: 2023-10-23T09:00:00 | G17: 9 | H17: C-D | I17: 300 | J17: 861 | K17: 18 | L17: =K17/60 -> 0.3 | M17: 861 | N17: 0 | O17: 0 | P17: 0 | Q17: 0 | R17: 0 | S17: 0 | T17: 0 | U17: =M17*$L17 -> 258.3 | V17: =N17*$L17 -> 0 | W17: =O17*$L17 -> 0 | X17: =P17*$L17 -> 0 | Y17: =Q17*$L17 -> 0 | Z17: =R17*$L17 -> 0 | AA17: =S17*$L17 -> 0
A18: [iCRS09116-7]* | B18: NWACI_SN | C18: 2023-09-24T15:33:48 | D18: 2023-09-24 | E18: 2023-09-24T15:33:00 | F18: 2023-09-24T16:00:00 | G18: 16 | H18: C-D | I18: 1069 | J18: 1388 | K18: 27 | L18: =K18/60 -> 0.45 | M18: 972 | N18: 216 | O18: 200 | P18: 0 | Q18: 0 | R18: 0 | S18: 0 | T18: 0 | U18: =M18*$L18 -> 437.4 | V18: =N18*$L18 -> 97.2 | W18: =O18*$L18 -> 90 | X18: =P18*$L18 -> 0 | Y18: =Q18*$L18 -> 0 | Z18: =R18*$L18 -> 0 | AA18: =S18*$L18 -> 0
A19: [iCRS09097-7]* | B19: NWACI_SN | C19: 2023-08-14T15:46:31 | D19: 2023-08-14 | E19: 2023-08-14T16:00:00 | F19: 2023-08-14T17:00:00 | G19: 17 | H19: A-D | I19: 296 | J19: 390 | K19: 60 | L19: =K19/60 -> 1 | M19: 0 | N19: 0 | O19: 390 | P19: 0 | Q19: 0 | R19: 0 | S19: 0 | T19: 0 | U19: =M19*$L19 -> 0 | V19: =N19*$L19 -> 0 | W19: =O19*$L19 -> 390 | X19: =P19*$L19 -> 0 | Y19: =Q19*$L19 -> 0 | Z19: =R19*$L19 -> 0 | AA19: =S19*$L19 -> 0
A20: [iCRS09093] | B20: NWACI_SN | C20: 2023-08-14T15:29:19 | D20: 2023-08-14 | E20: 2023-08-14T15:29:00 | F20: 2023-08-14T16:00:00 | G20: 16 | H20: B-D | I20: 300 | J20: 396 | K20: 31 | L20: 0.5166666667 | M20: 75 | N20: 100 | O20: 221 | P20: 0 | Q20: 0 | R20: 0 | S20: 0 | T20: 0 | U20: =M20*$L20 -> 38.75 | V20: =N20*$L20 -> 51.66666667 | W20: =O20*$L20 -> 114.1833333 | X20: =P20*$L20 -> 0 | Y20: =Q20*$L20 -> 0 | Z20: =R20*$L20 -> 0 | AA20: =S20*$L20 -> 0
A21: [iCRS09085] | B21: NOEL | C21: 2023-08-09T07:54:01 | D21: 2023-08-09 | E21: 2023-08-09T08:00:00 | F21: 2023-08-09T09:00:00 | G21: 9 | H21: A-D | I21: 300 | J21: 705 | K21: 60 | L21: 1 | M21: 705 | N21: 0 | O21: 0 | P21: 0 | Q21: 0 | R21: 0 | S21: 0 | T21: 0 | U21: =M21*$L21 -> 705 | V21: =N21*$L21 -> 0 | W21: =O21*$L21 -> 0 | X21: =P21*$L21 -> 0 | Y21: =Q21*$L21 -> 0 | Z21: =R21*$L21 -> 0 | AA21: =S21*$L21 -> 0
A22: [iCRS09083] | B22: NOEL | C22: 2023-08-09T07:33:38 | D22: 2023-08-09 | E22: 2023-08-09T07:33:00 | F22: 2023-08-09T08:00:00 | G22: 8 | H22: C-D | I22: 200 | J22: 487 | K22: 27 | L22: 0.45 | M22: 487 | N22: 0 | O22: 0 | P22: 0 | Q22: 0 | R22: 0 | S22: 0 | T22: 0 | U22: =M22*$L22 -> 219.15 | V22: =N22*$L22 -> 0 | W22: =O22*$L22 -> 0 | X22: =P22*$L22 -> 0 | Y22: =Q22*$L22 -> 0 | Z22: =R22*$L22 -> 0 | AA22: =S22*$L22 -> 0
A23: [iCRS09045] | B23: NWACI_SN | C23: 2023-05-10T13:54:15 | D23: 2023-05-10 | E23: 2023-05-10T14:00:00 | F23: 2023-05-10T15:00:00 | G23: 15 | H23: A-D | I23: 350 | J23: 407 | K23: 60 | L23: 1 | M23: 407 | N23: 0 | O23: 0 | P23: 0 | Q23: 0 | R23: 0 | S23: 0 | T23: 0 | U23: =M23*$L23 -> 407 | V23: =N23*$L23 -> 0 | W23: =O23*$L23 -> 0 | X23: =P23*$L23 -> 0 | Y23: =Q23*$L23 -> 0 | Z23: =R23*$L23 -> 0 | AA23: =S23*$L23 -> 0
A24: [iCRS09017-7] | B24: NOEL | C24: 2023-02-27T11:22:45 | D24: 2023-02-27 | E24: 2023-02-27T11:22:00 | F24: 02/27/2023 12:00:00 | G24: 12 | H24: B-D | I24: 300 | J24: 1686 | K24: 38 | L24: 0.6333333333 | M24: 353 | N24: 0 | O24: 43 | P24: 0 | Q24: 0 | R24: 0 | S24: 1290 | T24: 0 | U24: =M24*$L24 -> 223.5666667 | V24: =N24*$L24 -> 0 | W24: =O24*$L24 -> 27.23333333 | X24: =P24*$L24 -> 0 | Y24: =Q24*$L24 -> 0 | Z24: =R24*$L24 -> 0 | AA24: =S24*$L24 -> 817
A25: [iCRS09016-7] | B25: NOEL | C25: 2023-02-27T10:23:36 | D25: 2023-02-27 | E25: 2023-02-27T10:23:00 | F25: 02/27/2023 11:00:00 | G25: 11 | H25: B-D | I25: 300 | J25: 1430 | K25: 37 | L25: 0.6166666667 | M25: 379 | N25: 0 | O25: 43 | P25: 0 | Q25: 0 | R25: 0 | S25: 1008 | T25: 0 | U25: =M25*$L25 -> 233.7166667 | V25: =N25*$L25 -> 0 | W25: =O25*$L25 -> 26.51666667 | X25: =P25*$L25 -> 0 | Y25: =Q25*$L25 -> 0 | Z25: =R25*$L25 -> 0 | AA25: =S25*$L25 -> 621.6
A26: [iCRS09013] | B26: NOEL | C26: 2023-02-27T09:49:05 | D26: 2023-02-27 | E26: 2023-02-27T10:00:00 | F26: 02/27/2023 11:00:00 | G26: 11 | H26: A-D | I26: 300 | J26: 804 | K26: 60 | L26: 1 | M26: 804 | N26: 0 | O26: 0 | P26: 0 | Q26: 0 | R26: 0 | S26: 0 | T26: 0 | U26: =M26*$L26 -> 804 | V26: =N26*$L26 -> 0 | W26: =O26*$L26 -> 0 | X26: =P26*$L26 -> 0 | Y26: =Q26*$L26 -> 0 | Z26: =R26*$L26 -> 0 | AA26: =S26*$L26 -> 0
A27: [iCRS08976] | B27: NOEL | C27: 2022-12-21T15:47:07 | D27: =E27 -> 2022-12-21T16:00:00 | E27: 2022-12-21T16:00:00 | F27: 2022-12-21T17:00:00 | G27: 17 | H27: A-D | I27: 181 | J27: 645 | K27: =ROUND((F27-E27)*60*24,0) -> 60 | L27: =K27/60 -> 1 | M27: 645 | N27: 0 | O27: 0 | P27: 0 | Q27: 0 | R27: 0 | S27: 0 | T27: 0 | U27: =M27*$L27 -> 645 | V27: =N27*$L27 -> 0 | W27: =O27*$L27 -> 0 | X27: =P27*$L27 -> 0 | Y27: =Q27*$L27 -> 0 | Z27: =R27*$L27 -> 0 | AA27: =S27*$L27 -> 0
A28: [iCRS08972] | B28: NOEL | C28: 2022-12-21T15:18:51 | D28: =E28 -> 2022-12-21T15:18:00 | E28: 2022-12-21T15:18:00 | F28: 2022-12-21T16:00:00 | G28: 16 | H28: B-D | I28: 100 | J28: 290 | K28: =ROUND((F28-E28)*60*24,0) -> 42 | L28: =K28/60 -> 0.7 | M28: 74 | N28: 56 | O28: 160 | P28: 0 | Q28: 0 | R28: 0 | S28: 0 | T28: 0 | U28: =M28*$L28 -> 51.8 | V28: =N28*$L28 -> 39.2 | W28: =O28*$L28 -> 112 | X28: =P28*$L28 -> 0 | Y28: =Q28*$L28 -> 0 | Z28: =R28*$L28 -> 0 | AA28: =S28*$L28 -> 0
A29: [iCRS08971] | B29: NOEL | C29: 2022-12-21T14:48:56 | D29: =E29 -> 2022-12-21T15:00:00 | E29: 2022-12-21T15:00:00 | F29: 2022-12-21T16:00:00 | G29: 16 | H29: A-D | I29: 300 | J29: 940 | K29: =ROUND((F29-E29)*60*24,0) -> 60 | L29: =K29/60 -> 1 | M29: 940 | N29: 0 | O29: 0 | P29: 0 | Q29: 0 | R29: 0 | S29: 0 | T29: 0 | U29: =M29*$L29 -> 940 | V29: =N29*$L29 -> 0 | W29: =O29*$L29 -> 0 | X29: =P29*$L29 -> 0 | Y29: =Q29*$L29 -> 0 | Z29: =R29*$L29 -> 0 | AA29: =S29*$L29 -> 0
A30: [iCRS08969] | B30: NOEL | C30: 2022-12-21T14:21:02 | D30: =E30 -> 2022-12-21T14:21:00 | E30: 2022-12-21T14:21:00 | F30: 2022-12-21T15:00:00 | G30: 15 | H30: B-D | I30: 200 | J30: 602 | K30: =ROUND((F30-E30)*60*24,0) -> 39 | L30: =K30/60 -> 0.65 | M30: 602 | N30: 0 | O30: 0 | P30: 0 | Q30: 0 | R30: 0 | S30: 0 | T30: 0 | U30: =M30*$L30 -> 391.3 | V30: =N30*$L30 -> 0 | W30: =O30*$L30 -> 0 | X30: =P30*$L30 -> 0 | Y30: =Q30*$L30 -> 0 | Z30: =R30*$L30 -> 0 | AA30: =S30*$L30 -> 0
A31: [iCRS08938] | B31: NOEL | C31: 2022-11-09T19:06:35 | D31: 2022-11-09 | E31: 2022-11-09T19:06:00 | F31: 2022-11-09T20:00:00 | G31: 20 | H31: A-D | I31: 200 | J31: 595 | K31: 54 | L31: =K31/60 -> 0.9 | M31: 595 | N31: 0 | O31: 0 | P31: 0 | Q31: 0 | R31: 0 | S31: 0 | T31: 0 | U31: =M31*$L31 -> 535.5 | V31: =N31*$L31 -> 0 | W31: =O31*$L31 -> 0 | X31: =P31*$L31 -> 0 | Y31: =Q31*$L31 -> 0 | Z31: =R31*$L31 -> 0 | AA31: =S31*$L31 -> 0
A32: [iCRS08931] | B32: NOEL | C32: 2022-11-09T16:46:44 | D32: 2022-11-09 | E32: 2022-11-09T17:00:00 | F32: 2022-11-09T18:00:00 | G32: 18 | H32: A-D | I32: 500 | J32: 1108 | K32: 60 | L32: 1 | M32: 1108 | N32: 0 | O32: 0 | P32: 0 | Q32: 0 | R32: 0 | S32: 0 | T32: 0 | U32: 1108 | V32: 0 | W32: 0 | X32: 0 | Y32: 0 | Z32: 0 | AA32: 0
A33: [iCRS08927] | B33: NOEL | C33: 2022-11-09T16:29:43 | D33: 2022-11-09 | E33: 2022-11-09T16:29:00 | F33: 2022-11-09T17:00:00 | G33: 17 | H33: B-D | I33: 300 | J33: 662 | K33: 31 | L33: 0.5166666667 | M33: 662 | N33: 0 | O33: 0 | P33: 0 | Q33: 0 | R33: 0 | S33: 0 | T33: 0 | U33: 342.0333333 | V33: 0 | W33: 0 | X33: 0 | Y33: 0 | Z33: 0 | AA33: 0
A34: [iCRS08923-7]* | B34: NOEL | C34: 2022-11-09T09:47:05 | D34: 2022-11-09 | E34: 2022-11-09T10:00:00 | F34: 2022-11-09T11:00:00 | G34: 11 | H34: A-D | I34: 297 | J34: 912 | K34: 60 | L34: 1 | M34: 871 | N34: 0 | O34: 41 | P34: 0 | Q34: 0 | R34: 0 | S34: 0 | T34: 0 | U34: 871 | V34: 0 | W34: 41 | X34: 0 | Y34: 0 | Z34: 0 | AA34: 0
A35: [iCRS08916-7]* | B35: NOEL | C35: 2022-11-09T09:09:28 | D35: 2022-11-09 | E35: 2022-11-09T09:09:00 | F35: 2022-11-09T10:00:00 | G35: 10 | H35: A-D | I35: 264 | J35: 862 | K35: 51 | L35: =K35/60 -> 0.85 | M35: 814 | N35: 0 | O35: 41 | P35: 0 | Q35: 7 | R35: 0 | S35: 0 | T35: 0 | U35: =M35*$L35 -> 691.9 | V35: =N35*$L35 -> 0 | W35: 34.85 | X35: 0 | Y35: 5.95 | Z35: 0 | AA35: 0
A36: [iCRS08905] | B36: SI | C36: 2022-10-26T09:07:37 | D36: 2022-10-26 | E36: 2022-10-26T09:07:00 | F36: 2022-10-26T10:00:00 | G36: 10 | H36: A-D | I36: 85 | J36: 85 | K36: 53 | L36: =53/60 -> 0.8833333333 | M36: 85 | N36: 0 | R36: 0 | S36: 0 | T36: 0 | U36: =M36*L36 -> 75.08333333 | V36: 0 | Z36: 0 | AA36: 0
A37: [iCRS08904] | B37: SI | C37: 2022-10-26T08:24:42 | D37: 2022-10-26 | E37: 2022-10-26T08:24:00 | F37: 2022-10-26T09:00:00 | G37: 9 | H37: B-D | I37: 50 | J37: 57 | K37: 36 | L37: =36/60 -> 0.6 | M37: 57 | N37: 0 | R37: 0 | S37: 0 | T37: 0 | U37: =M37*L37 -> 34.2 | V37: 0 | Z37: 0 | AA37: 0
A38: [iCRS08885] | B38: R-P | C38: 2022-06-23T08:10:56 | D38: 2022-06-23 | E38: 2022-06-23T09:00:00 | F38: 2022-06-23T10:00:00 | G38: 10 | H38: A-D | I38: 75 | J38: 500 | K38: 60 | L38: 1 | M38: 500 | N38: 0 | R38: 0 | S38: 0 | T38: 0 | U38: 500 | V38: 0 | Z38: 0 | AA38: 0
A39: [iCRS08878] | B39: R-P | C39: 2022-06-23T07:31:06 | D39: 2022-06-23 | E39: 2022-06-23T08:00:00 | F39: 2022-06-23T09:00:00 | G39: 9 | H39: A-D | I39: 50 | J39: 360 | K39: 60 | L39: 1 | M39: 360 | N39: 0 | R39: 0 | S39: 0 | T39: 0 | U39: 360 | V39: 0 | Z39: 0 | AA39: 0
A40: [iCRS08877] | B40: R-P | C40: 2022-06-23T07:30:15 | D40: 2022-06-23 | E40: 2022-06-23T07:30:00 | F40: 2022-06-23T08:00:00 | G40: 8 | H40: A-D | I40: 50 | J40: 339 | K40: 30 | L40: 0.5 | M40: 339 | N40: 0 | R40: 0 | S40: 0 | T40: 0 | U40: 170 | V40: 0 | Z40: 0 | AA40: 0
A41: [iCRS08762-7] | B41: NWACI_NS | C41: 2021-07-09T15:53:33 | D41: 2021-09-07 | E41: 2021-07-09T16:00:00 | F41: 2021-07-09T17:00:00 | G41: 17 | H41: A-D | I41: 1300 | J41: 2209 | K41: 60 | L41: 1 | M41: 0 | N41: 0 | R41: 0 | S41: 2209 | T41: 0 | U41: 0 | V41: 0 | Z41: 0 | AA41: 2209
A42: [iCRS08724-7] | B42: NWACI_NS | C42: 2020-09-06T17:50:33 | D42: 2020-09-06 | E42: 2020-09-06T18:00:00 | F42: 2020-09-06T18:15:00 | G42: 19 | H42: A | I42: 960 | J42: 1170 | K42: 15 | L42: 0.2499999999 | M42: 0 | N42: 372 | R42: 0 | S42: 797 | T42: 0 | U42: 0 | V42: 93 | Z42: 0 | AA42: 199
A43: [iCRS08718] | B43: SOC | C43: 2020-08-06T08:45:15 | D43: 2020-08-06 | E43: 2020-08-06T09:00:00 | F43: 2020-08-06T10:00:00 | G43: 10 | H43: A-D | I43: 300 | J43: 371 | K43: 60 | L43: 0.9999999999 | M43: 371 | N43: 0 | R43: 0 | S43: 0 | T43: 0 | U43: 371 | V43: 0 | Z43: 0 | AA43: 0
A44: [iCRS08717] | B44: SOC | C44: 2020-08-06T08:30:25 | D44: 2020-08-06 | E44: 2020-08-06T08:30:00 | F44: 2020-08-06T09:00:00 | G44: 9 | H44: C-D | I44: 200 | J44: 248 | K44: 30 | L44: 0.5000000001 | M44: 248 | N44: 0 | R44: 0 | S44: 0 | T44: 0 | U44: 124 | V44: 0 | Z44: 0 | AA44: 0
A45: [iCRS08692-7] | B45: NWACI_NS | C45: 2020-06-27T12:12:27 | D45: 2020-06-27 | E45: 2020-06-27T12:12:00 | F45: 2020-06-27T13:00:00 | G45: 13 | H45: A-D | I45: 300 | J45: 370 | K45: 48 | L45: 0.8 | M45: 70 | N45: 0 | R45: 20 | S45: 280 | T45: 0 | U45: 56 | V45: 0 | Z45: 16 | AA45: 224
A46: [iCRS08693-7] | B46: NWACI_NS | C46: 2020-06-27T12:26:26 | D46: 2020-06-27 | E46: 2020-06-27T12:26:00 | F46: 2020-06-27T13:00:00 | G46: 13 | H46: B-D | I46: 300 | J46: 351 | K46: 34 | L46: 0.5666666666 | M46: 0 | N46: 26 | R46: 0 | S46: 325 | T46: 0 | U46: 0 | V46: 15 | Z46: 0 | AA46: 184
A47: [iCRS08691-7] | B47: NWACI_NS | C47: 2020-06-27T11:32:57 | D47: 2020-06-27 | E47: 2020-06-27T11:32:00 | F47: 2020-06-27T12:00:00 | G47: 12 | H47: C-D | I47: 350 | J47: 420 | K47: 28 | L47: 0.4666666666 | M47: 0 | N47: 0 | R47: 0 | S47: 420 | T47: 0 | U47: 0 | V47: 0 | Z47: 0 | AA47: 196
A48: [iCRS08690-7] | B48: NWACI_NS | C48: 2020-06-27T11:13:18 | D48: 2020-06-27 | E48: 2020-06-27T11:13:00 | F48: 2020-06-27T12:00:00 | G48: 12 | H48: A-D | I48: 250 | J48: 340 | K48: 47 | L48: 0.7833333333 | M48: 87 | N48: 44 | R48: 39 | S48: 170 | T48: 0 | U48: 68 | V48: 34 | Z48: 31 | AA48: 133
A49: [iCRS08689-7] | B49: NWACI_NS | C49: 2020-06-26T21:22:55 | D49: 2020-06-26 | E49: 2020-06-26T21:22:00 | F49: 2020-06-26T22:00:00 | G49: 22 | H49: B-D | I49: 500 | J49: 585 | K49: 38 | L49: 0.6333333333 | M49: 0 | N49: 0 | R49: 0 | S49: 585 | T49: 0 | U49: 0 | V49: 0 | Z49: 0 | AA49: 370
A50: [iCRS08688-7] | B50: NWACI_NS | C50: 2020-06-26T20:19:45 | D50: 2020-06-26 | E50: 2020-06-26T20:19:00 | F50: 2020-06-26T21:00:00 | G50: 21 | H50: B-D | I50: 700 | J50: 824 | K50: 41 | L50: 0.6833333333 | M50: 0 | N50: 0 | R50: 0 | S50: 824 | T50: 0 | U50: 0 | V50: 0 | Z50: 0 | AA50: 563
A51: [iCRS08687-7] | B51: NWACI_NS | C51: 2020-06-26T19:24:34 | D51: 2020-06-26 | E51: 2020-06-26T19:24:00 | F51: 2020-06-26T20:00:00 | G51: 20 | H51: B-D | I51: 700 | J51: 822 | K51: 36 | L51: 0.6 | M51: 0 | N51: 47 | R51: 0 | S51: 775 | T51: 0 | U51: 0 | V51: 28 | Z51: 0 | AA51: 465
A52: [iCRS08686-7] | B52: NWACI_NS | C52: 2020-06-26T18:27:41 | D52: 2020-06-26 | E52: 2020-06-26T18:27:00 | F52: 2020-06-26T19:00:00 | G52: 19 | H52: B-D | I52: 600 | J52: 704 | K52: 33 | L52: 0.5499999999 | M52: 0 | N52: 50 | R52: 0 | S52: 654 | T52: 0 | U52: 0 | V52: 27 | Z52: 0 | AA52: 360
A53: [iCRS08685-7] | B53: NWACI_NS | C53: 2020-06-26T17:13:07 | D53: 2020-06-26 | E53: 2020-06-26T17:13:00 | F53: 2020-06-26T18:00:00 | G53: 18 | H53: A-D | I53: 700 | J53: 819 | K53: 47 | L53: 0.7833333333 | M53: 0 | N53: 0 | R53: 0 | S53: 819 | T53: 0 | U53: 0 | V53: 0 | Z53: 0 | AA53: 642
A54: [iCRS08684-7] | B54: NWACI_NS | C54: 2020-06-26T16:31:36 | D54: 2020-06-26 | E54: 2020-06-26T16:31:00 | F54: 2020-06-26T17:00:00 | G54: 17 | H54: C-D | I54: 450 | J54: 527 | K54: 29 | L54: 0.4833333333 | M54: 0 | N54: 0 | R54: 0 | S54: 527 | T54: 0 | U54: 0 | V54: 0 | Z54: 0 | AA54: 255
A55: [iCRS08683-7] | B55: NWACI_NS | C55: 2020-06-26T15:21:25 | D55: 2020-06-26 | E55: 2020-06-26T15:21:00 | F55: 2020-06-26T16:00:00 | G55: 16 | H55: B-D | I55: 500 | J55: 585 | K55: 39 | L55: 0.65 | M55: 0 | N55: 25 | R55: 0 | S55: 560 | T55: 0 | U55: 0 | V55: 16 | Z55: 0 | AA55: 364
A56: [iCRS08682-7] | B56: NWACI_NS | C56: 2020-06-26T14:28:55 | D56: 2020-06-26 | E56: 2020-06-26T14:28:00 | F56: 2020-06-26T15:00:00 | G56: 15 | H56: B-D | I56: 400 | J56: 470 | K56: 32 | L56: 0.5333333333 | M56: 0 | N56: 0 | R56: 0 | S56: 470 | T56: 0 | U56: 0 | V56: 0 | Z56: 0 | AA56: 251
A57: [iCRS08681-7] | B57: NWACI_NS | C57: 2020-06-26T14:17:32 | D57: 2020-06-26 | E57: 2020-06-26T14:17:00 | F57: 2020-06-26T15:00:00 | G57: 15 | H57: B-D | I57: 350 | J57: 408 | K57: 43 | L57: 0.7166666667 | M57: 0 | N57: 0 | R57: 0 | S57: 408 | T57: 0 | U57: 0 | V57: 0 | Z57: 0 | AA57: 292
A58: [iCRS08677-7] | B58: NWACI_NS | C58: 2020-06-05T15:01:39 | D58: 2020-06-05 | E58: 2020-06-05T15:01:00 | F58: 2020-06-05T15:15:00 | G58: 16 | H58: A | I58: 100 | J58: 118 | K58: 14 | L58: 0.2333333332 | M58: 0 | N58: 0 | R58: 0 | S58: 118 | T58: 0 | U58: 0 | V58: 0 | Z58: 0 | AA58: 28
A59: [iCRS08664] | B59: NOEL | C59: 2020-03-02T15:13:09 | D59: 2020-03-02 | E59: 2020-03-02T15:13:00 | F59: 2020-03-02T16:00:00 | G59: 16 | H59: A-D | I59: 100 | J59: 291 | K59: 47 | L59: 0.7833333333 | M59: 291 | N59: 0 | R59: 0 | S59: 0 | T59: 0 | U59: 228 | V59: 0 | Z59: 0 | AA59: 0
A60: [iCRS08663] | B60: NOEL | C60: 2020-03-02T14:25:18 | D60: 2020-03-02 | E60: 2020-03-02T14:25:00 | F60: 2020-03-02T15:00:00 | G60: 15 | H60: B-D | I60: 150 | J60: 376 | K60: 35 | L60: 0.5833333333 | M60: 376 | N60: 0 | R60: 0 | S60: 0 | T60: 0 | U60: 219 | V60: 0 | Z60: 0 | AA60: 0
A61: [iCRS08662] | B61: NOEL | C61: 2020-03-02T12:51:10 | D61: 2020-03-02 | E61: 2020-03-02T13:00:00 | F61: 2020-03-02T14:00:00 | G61: 14 | H61: A-D | I61: 200 | J61: 483 | K61: 60 | L61: 1 | M61: 483 | N61: 0 | R61: 0 | S61: 0 | T61: 0 | U61: 483 | V61: 0 | Z61: 0 | AA61: 0
A62: [iCRS08661] | B62: NOEL | C62: 2020-03-02T12:45:08 | D62: 2020-03-02 | E62: 2020-03-02T12:45:00 | F62: 2020-03-02T13:00:00 | G62: 13 | H62: D | I62: 200 | J62: 493 | K62: 15 | L62: 0.2499999999 | M62: 493 | N62: 0 | R62: 0 | S62: 0 | T62: 0 | U62: 123 | V62: 0 | Z62: 0 | AA62: 0
A63: [iCRS08660] | B63: NOEL | C63: 2020-02-29T12:45:11 | D63: 2020-02-29 | E63: 2020-02-29T13:00:00 | F63: 2020-02-29T14:00:00 | G63: 14 | H63: A-D | I63: 100 | J63: 244 | K63: 60 | L63: 1 | M63: 244 | N63: 0 | R63: 0 | S63: 0 | T63: 0 | U63: 244 | V63: 0 | Z63: 0 | AA63: 0
A64: [iCRS08659] | B64: NOEL | C64: 2020-02-29T10:50:00 | D64: 2020-02-29 | E64: 2020-02-29T11:00:00 | F64: 2020-02-29T12:00:00 | G64: 12 | H64: A-D | I64: 100 | J64: 245 | K64: 60 | L64: 0.9999999999 | M64: 245 | N64: 0 | R64: 0 | S64: 0 | T64: 0 | U64: 245 | V64: 0 | Z64: 0 | AA64: 0
A65: [iCRS08658] | B65: NOEL | C65: 2020-02-29T08:47:33 | D65: 2020-02-29 | E65: 2020-02-29T09:00:00 | F65: 2020-02-29T10:00:00 | G65: 10 | H65: A-D | I65: 150 | J65: 399 | K65: 60 | L65: 0.9999999999 | M65: 399 | N65: 0 | R65: 0 | S65: 0 | T65: 0 | U65: 399 | V65: 0 | Z65: 0 | AA65: 0
A66: [iCRS08656] | B66: NOEL | C66: 2020-02-29T08:14:26 | D66: 2020-02-29 | E66: 2020-02-29T08:14:00 | F66: 2020-02-29T09:00:00 | G66: 9 | H66: A-D | I66: 200 | J66: 566 | K66: 46 | L66: 0.7666666667 | M66: 566 | N66: 0 | R66: 0 | S66: 0 | T66: 0 | U66: 434 | V66: 0 | Z66: 0 | AA66: 0
A67: [iCRS08657] | B67: NOEL | C67: 2020-02-29T08:24:26 | D67: 2020-02-29 | E67: 2020-02-29T08:24:00 | F67: 2020-02-29T09:00:00 | G67: 9 | H67: B-D | I67: 100 | J67: 282 | K67: 36 | L67: 0.6 | M67: 282 | N67: 0 | R67: 0 | S67: 0 | T67: 0 | U67: 169 | V67: 0 | Z67: 0 | AA67: 0
A68: [iCRS08655] | B68: NOEL | C68: 2020-02-27T11:46:10 | D68: 2020-02-27 | E68: 2020-02-27T12:00:00 | F68: 2020-02-27T13:00:00 | G68: 13 | H68: A-D | I68: 250 | J68: 506 | K68: 60 | L68: 0.9999999999 | M68: 506 | N68: 0 | R68: 0 | S68: 0 | T68: 0 | U68: 506 | V68: 0 | Z68: 0 | AA68: 0
A69: [iCRS08654] | B69: NOEL | C69: 2020-02-27T10:46:27 | D69: 2020-02-27 | E69: 2020-02-27T11:00:00 | F69: 2020-02-27T12:00:00 | G69: 12 | H69: A-D | I69: 250 | J69: 488 | K69: 60 | L69: 0.9999999999 | M69: 488 | N69: 0 | R69: 0 | S69: 0 | T69: 0 | U69: 488 | V69: 0 | Z69: 0 | AA69: 0
A70: [iCRS08653] | B70: NOEL | C70: 2020-02-27T10:25:35 | D70: 2020-02-27 | E70: 2020-02-27T10:25:00 | F70: 2020-02-27T11:00:00 | G70: 11 | H70: B-D | I70: 250 | J70: 486 | K70: 35 | L70: 0.5833333333 | M70: 486 | N70: 0 | R70: 0 | S70: 0 | T70: 0 | U70: 283 | V70: 0 | Z70: 0 | AA70: 0
A71: [iCRS08652] | B71: NOEL | C71: 2020-02-26T15:25:31 | D71: 2020-02-26 | E71: 2020-02-26T15:25:00 | F71: 2020-02-26T16:00:00 | G71: 16 | H71: B-D | I71: 200 | J71: 395 | K71: 35 | L71: 0.5833333333 | M71: 395 | N71: 0 | R71: 0 | S71: 0 | T71: 0 | U71: 230 | V71: 0 | Z71: 0 | AA71: 0
A72: [iCRS08650] | B72: NOEl | C72: 2020-02-26T13:55:06 | D72: 2020-02-26 | E72: 2020-02-26T14:00:00 | F72: 2020-02-26T15:00:00 | G72: 15 | H72: A-D | I72: 250 | J72: 491 | K72: 60 | L72: 0.9999999999 | M72: 491 | N72: 0 | R72: 0 | S72: 0 | T72: 0 | U72: 491 | V72: 0 | Z72: 0 | AA72: 0
A73: [iCRS08648] | B73: NOEL | C73: 2020-02-26T13:28:02 | D73: 2020-02-26 | E73: 2020-02-26T13:28:00 | F73: 2020-02-26T14:00:00 | G73: 14 | H73: B-D | I73: 250 | J73: 486 | K73: 32 | L73: 0.5333333333 | M73: 486 | N73: 0 | R73: 0 | S73: 0 | T73: 0 | U73: 259 | V73: 0 | Z73: 0 | AA73: 0
A74: [iCRS08646] | B74: NOEL | C74: 2020-02-26T12:01:11 | D74: 2020-02-26 | E74: 2020-02-26T12:01:00 | F74: 2020-02-26T13:00:00 | G74: 13 | H74: A-D | I74: 250 | J74: 476 | K74: 59 | L74: 0.9833333332 | M74: 476 | N74: 0 | R74: 0 | S74: 0 | T74: 0 | U74: 468 | V74: 0 | Z74: 0 | AA74: 0
A75: [iCRS08645] | B75: NOEL | C75: 2020-02-26T11:27:58 | D75: 2020-02-26 | E75: 2020-02-26T11:27:00 | F75: 2020-02-26T12:00:00 | G75: 12 | H75: B-D | I75: 250 | J75: 496 | K75: 33 | L75: 0.55 | M75: 496 | N75: 0 | R75: 0 | S75: 0 | T75: 0 | U75: 273 | V75: 0 | Z75: 0 | AA75: 0
A76: [iCRS08644] | B76: NOEL | C76: 2020-02-24T15:28:52 | D76: 2020-02-24 | E76: 2020-02-24T15:28:00 | F76: 2020-02-24T16:00:00 | G76: 16 | H76: B-D | I76: 250 | J76: 523 | K76: 32 | L76: 0.5333333333 | M76: 523 | N76: 0 | R76: 0 | S76: 0 | T76: 0 | U76: 279 | V76: 0 | Z76: 0 | AA76: 0
A77: [iCRS08642] | B77: NOEL | C77: 2020-02-24T10:56:54 | D77: 2020-02-24 | E77: 2020-02-24T11:00:00 | F77: 2020-02-24T12:00:00 | G77: 12 | H77: A-D | I77: 400 | J77: 825 | K77: 60 | L77: 0.9999999999 | M77: 825 | N77: 0 | R77: 0 | S77: 0 | T77: 0 | U77: 825 | V77: 0 | Z77: 0 | AA77: 0
A78: [iCRS08641] | B78: NOEL | C78: 2020-02-24T09:52:23 | D78: 2020-02-24 | E78: 2020-02-24T10:00:00 | F78: 2020-02-24T11:00:00 | G78: 11 | H78: A-D | I78: 400 | J78: 829 | K78: 60 | L78: 1 | M78: 829 | N78: 0 | R78: 0 | S78: 0 | T78: 0 | U78: 829 | V78: 0 | Z78: 0 | AA78: 0
A79: [iCRS08640] | B79: NOEL | C79: 2020-02-24T08:51:41 | D79: 2020-02-24 | E79: 2020-02-24T09:00:00 | F79: 2020-02-24T10:00:00 | G79: 10 | H79: A-D | I79: 400 | J79: 877 | K79: 60 | L79: 0.9999999999 | M79: 877 | N79: 0 | R79: 0 | S79: 0 | T79: 0 | U79: 877 | V79: 0 | Z79: 0 | AA79: 0
A80: [iCRS08638] | B80: NOEL | C80: 2020-02-24T08:23:05 | D80: 2020-02-24 | E80: 2020-02-24T08:23:00 | F80: 2020-02-24T09:00:00 | G80: 9 | H80: B-D | I80: 300 | J80: 674 | K80: 37 | L80: 0.6166666666 | M80: 674 | N80: 0 | R80: 0 | S80: 0 | T80: 0 | U80: 416 | V80: 0 | Z80: 0 | AA80: 0
A81: [iCRS08637] | B81: NOEL | C81: 2020-02-23T13:29:08 | D81: 2020-02-23 | E81: 2020-02-23T13:29:00 | F81: 2020-02-23T14:00:00 | G81: 14 | H81: B-D | I81: 150 | J81: 339 | K81: 31 | L81: 0.5166666668 | M81: 339 | N81: 0 | R81: 0 | S81: 0 | T81: 0 | U81: 175 | V81: 0 | Z81: 0 | AA81: 0
A82: [iCRS08636] | B82: NOEL | C82: 2020-02-23T11:40:18 | D82: 2020-02-23 | E82: 2020-02-23T11:40:00 | F82: 2020-02-23T12:00:00 | G82: 12 | H82: C-D | I82: 150 | J82: 329 | K82: 20 | L82: 0.3333333334 | M82: 329 | N82: 0 | R82: 0 | S82: 0 | T82: 0 | U82: 110 | V82: 0 | Z82: 0 | AA82: 0
A83: [iCRS08635] | B83: NOEL | C83: 2020-02-23T09:55:02 | D83: 2020-02-23 | E83: 2020-02-23T10:00:00 | F83: 2020-02-23T11:00:00 | G83: 11 | H83: A-D | I83: 300 | J83: 641 | K83: 60 | L83: 1 | M83: 641 | N83: 0 | R83: 0 | S83: 0 | T83: 0 | U83: 641 | V83: 0 | Z83: 0 | AA83: 0
A84: [iCRS08634] | B84: NOEL | C84: 2020-02-17T13:46:33 | D84: 2020-02-17 | E84: 2020-02-17T14:00:00 | F84: 2020-02-17T15:00:00 | G84: 15 | H84: A-D | I84: 100 | J84: 219 | K84: 60 | L84: 0.9999999999 | M84: 219 | N84: 0 | R84: 0 | S84: 0 | T84: 0 | U84: 219 | V84: 0 | Z84: 0 | AA84: 0
A85: [iCRS08632] | B85: NOEL | C85: 2020-02-17T12:50:08 | D85: 2020-02-17 | E85: 2020-02-17T13:00:00 | F85: 2020-02-17T14:00:00 | G85: 14 | H85: A-D | I85: 200 | J85: 433 | K85: 60 | L85: 1 | M85: 433 | N85: 0 | R85: 0 | S85: 0 | T85: 0 | U85: 433 | V85: 0 | Z85: 0 | AA85: 0
A86: [iCRS08630] | B86: NOEL | C86: 2020-02-17T12:31:18 | D86: 2020-02-17 | E86: 2020-02-17T12:31:00 | F86: 2020-02-17T13:00:00 | G86: 13 | H86: C-D | I86: 200 | J86: 431 | K86: 29 | L86: 0.4833333333 | M86: 431 | N86: 0 | R86: 0 | S86: 0 | T86: 0 | U86: 208 | V86: 0 | Z86: 0 | AA86: 0
A87: [iCRS08598] | B87: NOEL | C87: 2020-01-12T13:54:23 | D87: 2020-01-12 | E87: 2020-01-12T14:00:00 | F87: 2020-01-12T15:00:00 | G87: 15 | H87: A-D | I87: 250 | J87: 575 | K87: 60 | L87: 0.9999999999 | M87: 575 | N87: 0 | R87: 0 | S87: 0 | T87: 0 | U87: 575 | V87: 0 | Z87: 0 | AA87: 0
A88: [iCRS08597] | B88: NOEL | C88: 2020-01-12T12:42:23 | D88: 2020-01-12 | E88: 2020-01-12T13:00:00 | F88: 2020-01-12T14:00:00 | G88: 14 | H88: A-D | I88: 845 | J88: 1914 | K88: 60 | L88: 1 | M88: 1652 | N88: 262 | R88: 0 | S88: 0 | T88: 0 | U88: 1652 | V88: 262 | Z88: 0 | AA88: 0
A89: [iCRS08593] | B89: NOEL | C89: 2020-01-12T11:04:41 | D89: 2020-01-12 | E89: 2020-01-12T12:00:00 | F89: 2020-01-12T13:00:00 | G89: 13 | H89: A-D | I89: 350 | J89: 838 | K89: 60 | L89: 0.9999999999 | M89: 838 | N89: 0 | R89: 0 | S89: 0 | T89: 0 | U89: 838 | V89: 0 | Z89: 0 | AA89: 0
A90: [iCRS08596] | B90: NOEL | C90: 2020-01-12T12:35:22 | D90: 2020-01-12 | E90: 2020-01-12T12:35:00 | F90: 2020-01-12T13:00:00 | G90: 13 | H90: C-D | I90: 175 | J90: 391 | K90: 25 | L90: 0.4166666666 | M90: 391 | N90: 0 | R90: 0 | S90: 0 | T90: 0 | U90: 163 | V90: 0 | Z90: 0 | AA90: 0
A91: [iCRS08592] | B91: NOEL | C91: 2020-01-12T11:01:23 | D91: 2020-01-12 | E91: 2020-01-12T11:01:00 | F91: 2020-01-12T12:00:00 | G91: 12 | H91: A-D | I91: 350 | J91: 833 | K91: 59 | L91: 0.9833333334 | M91: 833 | N91: 0 | R91: 0 | S91: 0 | T91: 0 | U91: 819 | V91: 0 | Z91: 0 | AA91: 0
A92: [iCRS08590] | B92: NOEL | C92: 2020-01-12T09:33:57 | D92: 2020-01-12 | E92: 2020-01-12T10:00:00 | F92: 2020-01-12T11:00:00 | G92: 11 | H92: A-D | I92: 150 | J92: 348 | K92: 60 | L92: 1 | M92: 348 | N92: 0 | R92: 0 | S92: 0 | T92: 0 | U92: 348 | V92: 0 | Z92: 0 | AA92: 0
A93: [iCRS08588] | B93: NOEL | C93: 2020-01-12T10:07:18 | D93: 2020-01-12 | E93: 2020-01-12T10:07:00 | F93: 2020-01-12T11:00:00 | G93: 11 | H93: A-D | I93: 100 | J93: 248 | K93: 53 | L93: 0.8833333334 | M93: 248 | N93: 0 | R93: 0 | S93: 0 | T93: 0 | U93: 219 | V93: 0 | Z93: 0 | AA93: 0
A94: [iCRS08591] | B94: NOEL | C94: 2020-01-12T09:35:24 | D94: 2020-01-12 | E94: 2020-01-12T09:35:00 | F94: 2020-01-12T10:00:00 | G94: 10 | H94: C-D | I94: 150 | J94: 342 | K94: 25 | L94: 0.4166666666 | M94: 342 | N94: 0 | R94: 0 | S94: 0 | T94: 0 | U94: 142 | V94: 0 | Z94: 0 | AA94: 0
A95: [iCRS08555-7] | B95: NOEL | C95: 2019-10-26T17:45:02 | D95: 2019-10-26 | E95: 2019-10-26T18:00:00 | F95: 2019-10-26T19:00:00 | G95: 19 | H95: A-D | I95: 81 | J95: 268 | K95: 60 | L95: 0.9999999999 | M95: 2 | N95: 0 | R95: 0 | S95: 266 | T95: 0 | U95: 2 | V95: 0 | Z95: 0 | AA95: 266
A96: [iCRS08548-7] | B96: NOEL | C96: 2019-10-25T19:51:49 | D96: 2019-10-25 | E96: 2019-10-25T20:00:00 | F96: 2019-10-25T21:00:00 | G96: 21 | H96: A-D | I96: 81 | J96: 272 | K96: 60 | L96: 0.9999999999 | M96: 32 | N96: 0 | R96: 0 | S96: 240 | T96: 0 | U96: 32 | V96: 0 | Z96: 0 | AA96: 240
A97: [iCRS08547-7] | B97: NOEL | C97: 2019-10-25T18:43:06 | D97: 2019-10-25 | E97: 2019-10-25T19:00:00 | F97: 2019-10-25T20:00:00 | G97: 20 | H97: A-D | I97: 208 | J97: 686 | K97: 60 | L97: 1 | M97: 32 | N97: 0 | R97: 0 | S97: 654 | T97: 0 | U97: 32 | V97: 0 | Z97: 0 | AA97: 654
A98: [iCRS08544-7] | B98: NOEL | C98: 2019-10-25T17:46:34 | D98: 2019-10-25 | E98: 2019-10-25T18:00:00 | F98: 2019-10-25T19:00:00 | G98: 19 | H98: A-D | I98: 142 | J98: 471 | K98: 60 | L98: 0.9999999999 | M98: 38 | N98: 0 | R98: 0 | S98: 433 | T98: 0 | U98: 38 | V98: 0 | Z98: 0 | AA98: 433
A99: [iCRS08543-7] | B99: NOEL | C99: 2019-10-25T11:43:54 | D99: 2019-10-25 | E99: 2019-10-25T12:00:00 | F99: 2019-10-25T13:00:00 | G99: 13 | H99: A-D | I99: 102 | J99: 362 | K99: 60 | L99: 0.9999999999 | M99: 77 | N99: 0 | R99: 0 | S99: 285 | T99: 0 | U99: 77 | V99: 0 | Z99: 0 | AA99: 285
A100: [iCRS08538] | B100: NOEL | C100: 2019-10-22T22:43:32 | D100: 2019-10-22 | E100: 2019-10-22T23:00:00 | F100: 2019-10-23 | G100: 24 | H100: A-D | I100: 186 | J100: 391 | K100: 60 | L100: 0.9999999999 | M100: 391 | N100: 0 | R100: 0 | S100: 0 | T100: 0 | U100: 391 | V100: 0 | Z100: 0 | AA100: 0
A101: [iCRS08537] | B101: NOEL | C101: 2019-10-22T21:44:52 | D101: 2019-10-22 | E101: 2019-10-22T21:45:00 | F101: 2019-10-22T22:00:00 | G101: 22 | H101: D | I101: 15 | J101: 38 | K101: 15 | L101: 0.2499999999 | M101: 38 | N101: 0 | R101: 0 | S101: 0 | T101: 0 | U101: 9 | V101: 0 | Z101: 0 | AA101: 0
A102: [iCRS08533] | B102: NOEL | C102: 2019-10-22T13:59:46 | D102: 2019-10-22 | E102: 2019-10-22T14:00:00 | F102: 2019-10-22T15:00:00 | G102: 15 | H102: A-D | I102: 34 | J102: 82 | K102: 60 | L102: 0.9999999999 | M102: 82 | N102: 0 | R102: 0 | S102: 0 | T102: 0 | U102: 82 | V102: 0 | Z102: 0 | AA102: 0
A103: [iCRS08531] | B103: NOEL | C103: 2019-10-22T11:42:36 | D103: 2019-10-22 | E103: 2019-10-22T12:00:00 | F103: 2019-10-22T13:00:00 | G103: 13 | H103: A-D | I103: 101 | J103: 351 | K103: 60 | L103: 0.9999999999 | M103: 351 | N103: 0 | R103: 0 | S103: 0 | T103: 0 | U103: 351 | V103: 0 | Z103: 0 | AA103: 0
A104: [iCRS08529] | B104: NOEL | C104: 2019-10-22T10:53:14 | D104: 2019-10-22 | E104: 2019-10-22T11:00:00 | F104: 2019-10-22T12:00:00 | G104: 12 | H104: A-D | I104: 6 | J104: 22 | K104: 60 | L104: 0.9999999999 | M104: 22 | N104: 0 | R104: 0 | S104: 0 | T104: 0 | U104: 22 | V104: 0 | Z104: 0 | AA104: 0
A105: [iCRS08526] | B105: NOEL | C105: 2019-10-22T08:41:58 | D105: 2019-10-22 | E105: 2019-10-22T09:00:00 | F105: 2019-10-22T10:00:00 | G105: 10 | H105: A-D | I105: 73 | J105: 183 | K105: 60 | L105: 0.9999999999 | M105: 183 | N105: 0 | R105: 0 | S105: 0 | T105: 0 | U105: 183 | V105: 0 | Z105: 0 | AA105: 0
A106: [iCRS08525-7] | B106: NOEL | C106: 2019-10-22T07:41:19 | D106: 2019-10-22 | E106: 2019-10-22T08:00:00 | F106: 2019-10-22T09:00:00 | G106: 9 | H106: A-D | I106: 344 | J106: 890 | K106: 60 | L106: 0.9999999999 | M106: 539 | N106: 0 | R106: 0 | S106: 351 | T106: 0 | U106: 539 | V106: 0 | Z106: 0 | AA106: 351
A107: [iCRS08508-7] | B107: NWACI_NS | C107: 2019-09-25T18:41:54 | D107: 2019-09-25 | E107: 2019-09-25T18:45:00 | F107: 2019-09-25T19:00:00 | G107: 19 | H107: D | I107: 500 | J107: 572 | K107: 15 | L107: 0.2499999999 | M107: 0 | N107: 7 | R107: 0 | S107: 565 | T107: 0 | U107: 0 | V107: 2 | Z107: 0 | AA107: 141
A108: [iCRS08506-7] | B108: NWACI_NS | C108: 2019-09-25T18:10:58 | D108: 2019-09-25 | E108: 2019-09-25T18:15:00 | F108: 2019-09-25T18:30:00 | G108: 19 | H108: B | I108: 500 | J108: 572 | K108: 15 | L108: 0.2500000001 | M108: 0 | N108: 1 | R108: 0 | S108: 571 | T108: 0 | U108: 0 | V108: 0 | Z108: 0 | AA108: 143
A109: [iCRS08507-7] | B109: NWACI_NS | C109: 2019-09-25T18:24:27 | D109: 2019-09-25 | E109: 2019-09-25T18:15:00 | F109: 2019-09-25T18:30:00 | G109: 19 | H109: B | I109: 500 | J109: 572 | K109: 15 | L109: 0.2500000001 | M109: 0 | N109: 0 | R109: 0 | S109: 572 | T109: 0 | U109: 0 | V109: 0 | Z109: 0 | AA109: 143
A110: [iCRS08504-7] | B110: NWACI_NS | C110: 2019-09-25T17:24:04 | D110: 2019-09-25 | E110: 2019-09-25T17:15:00 | F110: 2019-09-25T17:30:00 | G110: 18 | H110: B | I110: 500 | J110: 578 | K110: 15 | L110: 0.2499999999 | M110: 0 | N110: 82 | R110: 0 | S110: 496 | T110: 0 | U110: 0 | V110: 20 | Z110: 0 | AA110: 124
A111: [iCRS08505-7] | B111: NWACI_NS | C111: 2019-09-25T17:42:29 | D111: 2019-09-25 | E111: 2019-09-25T17:45:00 | F111: 2019-09-25T18:00:00 | G111: 18 | H111: D | I111: 500 | J111: 572 | K111: 15 | L111: 0.2499999999 | M111: 0 | N111: 13 | R111: 0 | S111: 559 | T111: 0 | U111: 0 | V111: 3 | Z111: 0 | AA111: 140
A112: [iCRS38173] | B112: NOEL | C112: 2019-02-22T09:43:30 | D112: 2019-02-22 | E112: 2019-02-22T09:45:00 | F112: 2019-02-22T10:00:00 | G112: 10 | H112: D | I112: 250 | J112: 832 | K112: 15 | L112: 0.2499999999 | M112: 832 | N112: 0 | R112: 0 | S112: 0 | T112: 0 | U112: 208 | V112: 0 | Z112: 0 | AA112: 0
